[Event "*** Titled Tuesday Blitz"]
[Site "Chess.com"]
[Date "2018.09.04"]
[Round "4"]
[White "sergiochess83"]
[Black "Msb2"]
[Result "1-0"]
[WhiteElo "2742"]
[BlackElo "2845"]
[TimeControl "180+2"]
[EndTime "14:28:24 PDT"]
[Termination "sergiochess83 won by resignation"]

1. e4 {[%clk 0:03:01.9]} 1... c6 {[%clk 0:03:00.9]} 2. d4 {[%clk 0:03:00.9]}
2... d5 {[%clk 0:03:02.8]} 3. exd5 {[%clk 0:03:01.4]} 3... cxd5 {[%clk
0:03:04.7]} 4. Bd3 {[%clk 0:03:02]} 4... Nf6 {[%clk 0:03:06.1]} 5. c3 {[%clk
0:03:03.3]} 5... Bg4 {[%clk 0:03:07.7]} 6. Ne2 {[%clk 0:03:01.7]} 6... e6 {[%clk
0:03:02]} 7. h3 {[%clk 0:03:01.1]} 7... Bh5 {[%clk 0:03:01.9]} 8. Qb3 {[%clk
0:03:01.9]} 8... Qd7 {[%clk 0:03:00.6]} 9. Nf4 {[%clk 0:03:01.3]} 9... Bg6
{[%clk 0:03:01.3]} 10. Nxg6 {[%clk 0:03:02.3]} 10... hxg6 {[%clk 0:03:03.2]} 11.
Nd2 {[%clk 0:03:02.1]} 11... Nc6 {[%clk 0:03:03.9]} 12. Nf3 {[%clk 0:03:03.2]}
12... Bd6 {[%clk 0:03:05.5]} 13. Bd2 {[%clk 0:03:02.2]} 13... Rc8 {[%clk
0:02:53.3]} 14. O-O {[%clk 0:03:00.7]} 14... O-O {[%clk 0:02:53.6]} 15. Rae1
{[%clk 0:02:56.7]} 15... Na5 {[%clk 0:02:53.7]} 16. Qd1 {[%clk 0:02:57]} 16...
Nc4 {[%clk 0:02:54.9]} 17. Bc1 {[%clk 0:02:57.7]} 17... Qc7 {[%clk 0:02:53.9]}
18. g3 {[%clk 0:02:29.2]} 18... Nh5 {[%clk 0:02:41.8]} 19. Bxc4 {[%clk
0:01:58.1]} 19... Qxc4 {[%clk 0:02:24.8]} 20. a3 {[%clk 0:01:59.1]} 20... Qc7
{[%clk 0:02:23.6]} 21. Ne5 {[%clk 0:01:56.1]} 21... Nf6 {[%clk 0:02:21]} 22. Bf4
{[%clk 0:01:53.7]} 22... Ne4 {[%clk 0:02:18.2]} 23. h4 {[%clk 0:01:23.1]} 23...
Bxe5 {[%clk 0:01:54.3]} 24. Bxe5 {[%clk 0:01:21.6]} 24... Qd7 {[%clk 0:01:55.9]}
25. Kg2 {[%clk 0:01:13.9]} 25... f6 {[%clk 0:01:56.7]} 26. Bf4 {[%clk
0:01:14.3]} 26... Kf7 {[%clk 0:01:58.1]} 27. Re2 {[%clk 0:01:02.7]} 27... Rh8
{[%clk 0:01:54.1]} 28. f3 {[%clk 0:00:56.9]} 28... Nd6 {[%clk 0:01:54.4]} 29.
Bxd6 {[%clk 0:00:55]} 29... Qxd6 {[%clk 0:01:55.3]} 30. Rfe1 {[%clk 0:00:56.6]}
30... Rhe8 {[%clk 0:01:56.4]} 31. f4 {[%clk 0:00:53.7]} 31... b5 {[%clk
0:01:54.3]} 32. Re3 {[%clk 0:00:54.3]} 32... Re7 {[%clk 0:01:08.8]} 33. h5
{[%clk 0:00:50.1]} 33... Rh8 {[%clk 0:01:03.5]} 34. hxg6+ {[%clk 0:00:41.3]}
34... Kxg6 {[%clk 0:01:05.4]} 35. Qg4+ {[%clk 0:00:35.4]} 35... Kf7 {[%clk
0:01:06.7]} 36. f5 {[%clk 0:00:36.7]} 36... e5 {[%clk 0:00:19.2]} 37. Qg6+
{[%clk 0:00:37.1]} 37... Kf8 {[%clk 0:00:20.7]} 38. dxe5 {[%clk 0:00:38.4]}
38... Qc6 {[%clk 0:00:22.3]} 39. exf6 {[%clk 0:00:17.3]} 39... d4+ {[%clk
0:00:22.6]} 40. Rf3 {[%clk 0:00:18.6]} 40... Qxf6 {[%clk 0:00:13]} 41. Qxf6+
{[%clk 0:00:19]} 41... gxf6 {[%clk 0:00:14.9]} 42. Rxe7 {[%clk 0:00:19.7]} 42...
Kxe7 {[%clk 0:00:16.8]} 43. cxd4 {[%clk 0:00:21.1]} 43... Kd6 {[%clk 0:00:17.6]}
44. Re3 {[%clk 0:00:20.5]} 44... Kd5 {[%clk 0:00:19.1]} 45. Re6 {[%clk
0:00:21.2]} 45... Rf8 {[%clk 0:00:20.4]} 46. Kf3 {[%clk 0:00:18.7]} 46... Kxd4
{[%clk 0:00:21.8]} 47. g4 {[%clk 0:00:17.6]} 47... Kc4 {[%clk 0:00:23.1]} 48. b4
{[%clk 0:00:16.1]} 48... Kd5 {[%clk 0:00:17.7]} 49. Kf4 {[%clk 0:00:14.7]} 49...
Rf7 {[%clk 0:00:13.3]} 50. Ra6 {[%clk 0:00:12.1]} 50... Kd4 {[%clk 0:00:11.8]}
51. Rc6 {[%clk 0:00:11.3]} 51... Kd3 {[%clk 0:00:10.5]} 52. g5 {[%clk
0:00:08.8]} 52... fxg5+ {[%clk 0:00:12.4]} 53. Kxg5 {[%clk 0:00:10.4]} 53... Re7
{[%clk 0:00:11.7]} 54. f6 {[%clk 0:00:10.8]} 54... Re5+ {[%clk 0:00:12.8]} 55.
Kg6 {[%clk 0:00:11.7]} 55... Re1 {[%clk 0:00:12.8]} 56. f7 {[%clk 0:00:12.9]}
56... Rg1+ {[%clk 0:00:14.7]} 57. Kh7 {[%clk 0:00:13.4]} 57... Rf1 {[%clk
0:00:16]} 58. Kg7 {[%clk 0:00:14.6]} 1-0

[Event "*** Titled Tuesday Blitz"]
[Site "Chess.com"]
[Date "2018.09.04"]
[Round "4"]
[White "Gr3egor"]
[Black "dreamist"]
[Result "1-0"]
[WhiteElo "2492"]
[BlackElo "2643"]
[TimeControl "180+2"]
[EndTime "14:28:34 PDT"]
[Termination "Gr3egor won by resignation"]

1. d4 {[%clk 0:03:01.9]} 1... Nf6 {[%clk 0:02:55.5]} 2. c4 {[%clk 0:03:02.6]}
2... Nc6 {[%clk 0:02:55.1]} 3. Nc3 {[%clk 0:03:02.7]} 3... e5 {[%clk 0:02:55.8]}
4. d5 {[%clk 0:03:01.6]} 4... Ne7 {[%clk 0:02:56.8]} 5. e4 {[%clk 0:03:02.4]}
5... Ng6 {[%clk 0:02:57.7]} 6. h4 {[%clk 0:03:00.3]} 6... h5 {[%clk 0:02:56.4]}
7. a3 {[%clk 0:02:58.4]} 7... Bc5 {[%clk 0:02:56.3]} 8. g3 {[%clk 0:02:59.4]}
8... Ng4 {[%clk 0:02:51.6]} 9. Nh3 {[%clk 0:03:00.4]} 9... O-O {[%clk
0:02:50.6]} 10. Be2 {[%clk 0:02:56.5]} 10... d6 {[%clk 0:02:51.4]} 11. Bg5
{[%clk 0:02:52]} 11... f6 {[%clk 0:02:50.9]} 12. Bd2 {[%clk 0:02:53.1]} 12... f5
{[%clk 0:02:50.7]} 13. Bg5 {[%clk 0:02:52.3]} 13... Qe8 {[%clk 0:02:50.2]} 14.
Qd2 {[%clk 0:02:48.5]} 14... f4 {[%clk 0:02:34.8]} 15. Nb5 {[%clk 0:02:19.2]}
15... Qf7 {[%clk 0:01:54.6]} 16. gxf4 {[%clk 0:02:00]} 16... Nxf4 {[%clk
0:01:48.8]} 17. Bxf4 {[%clk 0:01:58.6]} 17... exf4 {[%clk 0:01:48]} 18. f3
{[%clk 0:01:59.8]} 18... Be3 {[%clk 0:01:23.9]} 19. Qc3 {[%clk 0:01:56.9]} 19...
Ne5 {[%clk 0:01:19.7]} 20. Ng5 {[%clk 0:01:57.6]} 20... Qe7 {[%clk 0:01:18.8]}
21. Nd4 {[%clk 0:01:55.1]} 21... c5 {[%clk 0:01:17.1]} 22. Nde6 {[%clk
0:01:55.1]} 22... Rf6 {[%clk 0:01:15]} 23. Kd1 {[%clk 0:01:53]} 23... Bxe6
{[%clk 0:01:08.7]} 24. dxe6 {[%clk 0:01:48.8]} 24... Bd4 {[%clk 0:01:02.5]} 25.
Qb3 {[%clk 0:01:46.8]} 25... Rb8 {[%clk 0:00:58.2]} 26. Kc2 {[%clk 0:01:47.1]}
26... Nc6 {[%clk 0:00:57.1]} 27. Rad1 {[%clk 0:01:47.2]} 27... Be5 {[%clk
0:00:54.8]} 28. Kb1 {[%clk 0:01:46.3]} 28... Nd4 {[%clk 0:00:55.5]} 29. Rxd4
{[%clk 0:01:28.8]} 29... Bxd4 {[%clk 0:00:56.7]} 30. Qd3 {[%clk 0:01:29.7]}
30... b5 {[%clk 0:00:50.1]} 31. e5 {[%clk 0:01:27.3]} 31... Rh6 {[%clk
0:00:51.1]} 32. exd6 {[%clk 0:01:26.5]} 32... bxc4 {[%clk 0:00:43.1]} 33. Qxd4
{[%clk 0:01:13.2]} 33... cxd4 {[%clk 0:00:36.4]} 34. dxe7 {[%clk 0:01:14.4]}
34... d3 {[%clk 0:00:36.7]} 35. Rd1 {[%clk 0:01:05.7]} 35... g6 {[%clk
0:00:21.8]} 36. Bxd3 {[%clk 0:01:03.4]} 36... cxd3 {[%clk 0:00:22.1]} 37. Rxd3
{[%clk 0:01:04.7]} 37... Kg7 {[%clk 0:00:23.6]} 38. Nf7 {[%clk 0:00:57.5]} 38...
Re8 {[%clk 0:00:23.2]} 39. Nxh6 {[%clk 0:00:55]} 39... Kxh6 {[%clk 0:00:25.1]}
40. Rd7 {[%clk 0:00:56.2]} 40... g5 {[%clk 0:00:24.7]} 41. Rd8 {[%clk
0:00:38.8]} 41... Rxe7 {[%clk 0:00:25.5]} 42. Rh8+ {[%clk 0:00:40.4]} 42... Kg7
{[%clk 0:00:24]} 43. Rxh5 {[%clk 0:00:41.2]} 43... gxh4 {[%clk 0:00:24.5]} 44.
Rxh4 {[%clk 0:00:42.5]} 44... Rxe6 {[%clk 0:00:25.8]} 45. Rxf4 {[%clk
0:00:43.8]} 45... Re3 {[%clk 0:00:22.2]} 46. Ka2 {[%clk 0:00:43.7]} 46... Kg6
{[%clk 0:00:21.6]} 47. a4 {[%clk 0:00:42.2]} 47... a5 {[%clk 0:00:20.3]} 48. b3
{[%clk 0:00:42]} 48... Re1 {[%clk 0:00:16.1]} 49. Kb2 {[%clk 0:00:42.9]} 49...
Re3 {[%clk 0:00:16.8]} 50. Kc2 {[%clk 0:00:43.4]} 50... Kg5 {[%clk 0:00:17.4]}
51. Rf8 {[%clk 0:00:43.9]} 51... Kg6 {[%clk 0:00:18.4]} 52. Ra8 {[%clk 0:00:43]}
52... Re5 {[%clk 0:00:19.2]} 53. Kd3 {[%clk 0:00:41.2]} 53... Kf6 {[%clk
0:00:19.1]} 54. Kc4 {[%clk 0:00:40.5]} 54... Ke7 {[%clk 0:00:19.2]} 55. Rb8
{[%clk 0:00:41.7]} 55... Rf5 {[%clk 0:00:15.5]} 56. Rb5 {[%clk 0:00:42.4]} 56...
Rf4+ {[%clk 0:00:16.5]} 57. Kc5 {[%clk 0:00:40.9]} 57... Rxf3 {[%clk 0:00:13.8]}
58. Kb6 {[%clk 0:00:42.3]} 58... Kd6 {[%clk 0:00:14.9]} 59. Kxa5 {[%clk
0:00:43.5]} 59... Kc6 {[%clk 0:00:16.1]} 60. b4 {[%clk 0:00:45]} 60... Rf8
{[%clk 0:00:10.8]} 61. Rc5+ {[%clk 0:00:46.2]} 61... Kd6 {[%clk 0:00:11.7]} 62.
Kb5 {[%clk 0:00:47.5]} 62... Rb8+ {[%clk 0:00:12]} 63. Kc4 {[%clk 0:00:49]}
63... Rh8 {[%clk 0:00:13.6]} 64. a5 {[%clk 0:00:50.4]} 64... Rh4+ {[%clk
0:00:14.7]} 65. Kb5 {[%clk 0:00:51.9]} 65... Rh8 {[%clk 0:00:15]} 66. a6 {[%clk
0:00:53.4]} 66... Rb8+ {[%clk 0:00:16.1]} 67. Ka5 {[%clk 0:00:54.8]} 67... Rh8
{[%clk 0:00:17.6]} 68. a7 {[%clk 0:00:55.5]} 68... Rh1 {[%clk 0:00:18.4]} 69.
Kb6 {[%clk 0:00:54.4]} 69... Ra1 {[%clk 0:00:17.4]} 70. Ra5 {[%clk 0:00:55.5]}
70... Rb1 {[%clk 0:00:18.5]} 71. b5 {[%clk 0:00:55.8]} 1-0

[Event "*** Titled Tuesday Blitz"]
[Site "Chess.com"]
[Date "2018.09.04"]
[Round "4"]
[White "lucasmito"]
[Black "335394862"]
[Result "1-0"]
[WhiteElo "2348"]
[BlackElo "2313"]
[TimeControl "180+2"]
[EndTime "14:28:37 PDT"]
[Termination "lucasmito won on time"]

1. e4 {[%clk 0:03:01.9]} 1... c5 {[%clk 0:02:31.9]} 2. Nf3 {[%clk 0:03:02.3]}
2... Nc6 {[%clk 0:02:33]} 3. d4 {[%clk 0:03:04]} 3... cxd4 {[%clk 0:02:34.9]} 4.
Nxd4 {[%clk 0:03:05.3]} 4... g6 {[%clk 0:02:36.3]} 5. Nc3 {[%clk 0:03:06]} 5...
Bg7 {[%clk 0:02:37]} 6. Be3 {[%clk 0:03:07.3]} 6... Nf6 {[%clk 0:02:36.4]} 7.
Bc4 {[%clk 0:03:08.8]} 7... Qa5 {[%clk 0:02:36]} 8. O-O {[%clk 0:03:09]} 8...
O-O {[%clk 0:02:34.9]} 9. Bb3 {[%clk 0:03:08.8]} 9... d6 {[%clk 0:02:35.9]} 10.
h3 {[%clk 0:03:09.5]} 10... Bd7 {[%clk 0:02:36.9]} 11. f4 {[%clk 0:03:10.7]}
11... Nxd4 {[%clk 0:02:35.3]} 12. Bxd4 {[%clk 0:03:11.6]} 12... Bc6 {[%clk
0:02:36.6]} 13. Qe1 {[%clk 0:02:44.2]} 13... Nd7 {[%clk 0:02:27.5]} 14. Bxg7
{[%clk 0:02:46.1]} 14... Kxg7 {[%clk 0:02:28.7]} 15. Nd5 {[%clk 0:02:39.7]}
15... Qxe1 {[%clk 0:02:29.4]} 16. Rfxe1 {[%clk 0:02:39.1]} 16... e6 {[%clk
0:02:27.8]} 17. Nb4 {[%clk 0:02:36.7]} 17... Nc5 {[%clk 0:02:28]} 18. Nxc6
{[%clk 0:02:20.1]} 18... bxc6 {[%clk 0:02:24.2]} 19. f5 {[%clk 0:02:15.4]} 19...
gxf5 {[%clk 0:02:07.5]} 20. exf5 {[%clk 0:02:17.3]} 20... exf5 {[%clk
0:02:08.6]} 21. Rf1 {[%clk 0:02:00.5]} 21... Kg6 {[%clk 0:02:03.2]} 22. Rf4
{[%clk 0:01:56.5]} 22... Ne6 {[%clk 0:01:59.3]} 23. Rf2 {[%clk 0:01:55]} 23...
f4 {[%clk 0:01:49.1]} 24. Raf1 {[%clk 0:01:53.1]} 24... Kg5 {[%clk 0:01:47.3]}
25. g3 {[%clk 0:01:41.9]} 25... d5 {[%clk 0:01:27.1]} 26. c3 {[%clk 0:01:19]}
26... f5 {[%clk 0:01:10.9]} 27. gxf4+ {[%clk 0:00:54.4]} 27... Kf6 {[%clk
0:01:11.4]} 28. Ba4 {[%clk 0:00:48.5]} 28... Rac8 {[%clk 0:01:09.9]} 29. Kh2
{[%clk 0:00:47.9]} 29... Nc5 {[%clk 0:01:09.7]} 30. Bc2 {[%clk 0:00:46.6]} 30...
Rce8 {[%clk 0:01:10.8]} 31. Rg2 {[%clk 0:00:45.5]} 31... Rg8 {[%clk 0:01:05.9]}
32. Rfg1 {[%clk 0:00:42.9]} 32... Rxg2+ {[%clk 0:01:04.9]} 33. Rxg2 {[%clk
0:00:44.8]} 33... Re1 {[%clk 0:00:58.2]} 34. b4 {[%clk 0:00:35.2]} 34... Ne4
{[%clk 0:00:57.3]} 35. Ba4 {[%clk 0:00:20.9]} 35... Nxc3 {[%clk 0:00:47.3]} 36.
Bxc6 {[%clk 0:00:21.7]} 36... d4 {[%clk 0:00:48.7]} 37. Rd2 {[%clk 0:00:21.6]}
37... Re2+ {[%clk 0:00:39.2]} 38. Rxe2 {[%clk 0:00:22]} 38... Nxe2 {[%clk
0:00:41.1]} 39. a4 {[%clk 0:00:14.4]} 39... Nc3 {[%clk 0:00:30.8]} 40. a5 {[%clk
0:00:12.6]} 40... d3 {[%clk 0:00:30.7]} 41. Bf3 {[%clk 0:00:11]} 41... d2 {[%clk
0:00:30.6]} 42. Kg3 {[%clk 0:00:11.9]} 42... a6 {[%clk 0:00:15.8]} 43. Kf2
{[%clk 0:00:09.3]} 43... Ke6 {[%clk 0:00:16.2]} 44. Ke3 {[%clk 0:00:08.9]} 44...
d1=Q {[%clk 0:00:17.5]} 45. Bxd1 {[%clk 0:00:09.6]} 45... Nxd1+ {[%clk
0:00:19.4]} 46. Kd2 {[%clk 0:00:10.1]} 46... Nf2 {[%clk 0:00:13.6]} 47. Ke3
{[%clk 0:00:09.5]} 47... Ne4 {[%clk 0:00:13.5]} 48. b5 {[%clk 0:00:08.4]} 48...
Kd6 {[%clk 0:00:07.5]} 49. bxa6 {[%clk 0:00:09.4]} 49... Kc6 {[%clk 0:00:07.5]}
50. Kd4 {[%clk 0:00:10.2]} 50... Kc7 {[%clk 0:00:08.5]} 51. Ke5 {[%clk
0:00:11.3]} 51... Ng3 {[%clk 0:00:08.4]} 52. Kf6 {[%clk 0:00:12.2]} 52... Kb8
{[%clk 0:00:08.6]} 53. Kg5 {[%clk 0:00:13.4]} 53... Ka7 {[%clk 0:00:09.1]} 54.
Kh4 {[%clk 0:00:14.5]} 54... Ne4 {[%clk 0:00:10.2]} 55. Kh5 {[%clk 0:00:15.4]}
55... Kxa6 {[%clk 0:00:10.7]} 56. Kh6 {[%clk 0:00:16.8]} 56... Kxa5 {[%clk
0:00:06.7]} 57. Kxh7 {[%clk 0:00:17.9]} 57... Kb4 {[%clk 0:00:07.7]} 58. Kg6
{[%clk 0:00:18.4]} 58... Ng3 {[%clk 0:00:08.4]} 59. h4 {[%clk 0:00:19.9]} 59...
Kc4 {[%clk 0:00:09.6]} 60. h5 {[%clk 0:00:21.1]} 60... Nxh5 {[%clk 0:00:06.8]}
61. Kxh5 {[%clk 0:00:21.9]} 61... Kd5 {[%clk 0:00:08]} 62. Kg6 {[%clk
0:00:22.4]} 1-0

[Event "*** Titled Tuesday Blitz"]
[Site "Chess.com"]
[Date "2018.09.04"]
[Round "4"]
[White "Genghis_K"]
[Black "danyuffa"]
[Result "1/2-1/2"]
[WhiteElo "2863"]
[BlackElo "2683"]
[TimeControl "180+2"]
[EndTime "14:28:41 PDT"]
[Termination "Game drawn by agreement"]

1. e4 {[%clk 0:02:59.8]} 1... c6 {[%clk 0:02:58.3]} 2. d4 {[%clk 0:02:59.5]}
2... d5 {[%clk 0:02:59.6]} 3. e5 {[%clk 0:03:01.1]} 3... Bf5 {[%clk 0:03:00.2]}
4. h4 {[%clk 0:03:02.5]} 4... a6 {[%clk 0:03:00.6]} 5. h5 {[%clk 0:02:58.1]}
5... c5 {[%clk 0:02:59.4]} 6. g4 {[%clk 0:02:48.6]} 6... Bd7 {[%clk 0:02:58.6]}
7. dxc5 {[%clk 0:02:42.6]} 7... Nc6 {[%clk 0:02:55.7]} 8. f4 {[%clk 0:02:43.4]}
8... e6 {[%clk 0:02:38.8]} 9. Be3 {[%clk 0:02:41.2]} 9... d4 {[%clk 0:02:32.1]}
10. Bf2 {[%clk 0:02:42.2]} 10... Bxc5 {[%clk 0:02:31.4]} 11. Nd2 {[%clk
0:02:43.3]} 11... Nge7 {[%clk 0:02:21.9]} 12. Ne4 {[%clk 0:02:31.6]} 12... Nd5
{[%clk 0:02:22]} 13. Qd2 {[%clk 0:02:29.6]} 13... Bb4 {[%clk 0:02:17.1]} 14. c3
{[%clk 0:02:30]} 14... dxc3 {[%clk 0:02:14.3]} 15. bxc3 {[%clk 0:02:31.2]} 15...
Be7 {[%clk 0:02:14.1]} 16. Nf3 {[%clk 0:02:21.2]} 16... Qa5 {[%clk 0:02:12.2]}
17. Rb1 {[%clk 0:02:17.1]} 17... b5 {[%clk 0:02:09.8]} 18. h6 {[%clk 0:02:13.2]}
18... gxh6 {[%clk 0:02:05.2]} 19. Rxh6 {[%clk 0:02:11.1]} 19... b4 {[%clk
0:01:58.4]} 20. cxb4 {[%clk 0:01:54.9]} 20... Ncxb4 {[%clk 0:01:58.2]} 21. Bh4
{[%clk 0:01:46]} 21... Bc5 {[%clk 0:01:50.6]} 22. Nxc5 {[%clk 0:01:43.2]} 22...
Qxc5 {[%clk 0:01:49]} 23. Rc1 {[%clk 0:01:44.5]} 23... Qe3+ {[%clk 0:01:45.7]}
24. Qxe3 {[%clk 0:01:45.6]} 24... Nxe3 {[%clk 0:01:41.8]} 25. Ng5 {[%clk
0:01:35.3]} 25... Nxg4 {[%clk 0:01:36.2]} 26. Rxh7 {[%clk 0:01:36.8]} 26... Rxh7
{[%clk 0:01:32.9]} 27. Nxh7 {[%clk 0:01:38.7]} 27... Bb5 {[%clk 0:01:26.5]} 28.
a3 {[%clk 0:01:38]} 28... Nd5 {[%clk 0:01:23.9]} 29. Bg2 {[%clk 0:01:37.5]}
29... Nge3 {[%clk 0:01:13.6]} 30. Bf3 {[%clk 0:01:31.1]} 30... Rb8 {[%clk
0:01:07.4]} 31. Kf2 {[%clk 0:01:15.3]} 31... Nf5 {[%clk 0:01:05.3]} 32. Bxd5
{[%clk 0:01:11.6]} 32... exd5 {[%clk 0:01:04.5]} 33. Nf6+ {[%clk 0:01:12.7]}
33... Kf8 {[%clk 0:01:05.4]} 34. Bg5 {[%clk 0:01:14]} 34... d4 {[%clk
0:00:54.4]} 35. Rh1 {[%clk 0:01:15.2]} 35... Ke7 {[%clk 0:00:55.6]} 36. Rc1
{[%clk 0:01:09.2]} 36... Ke6 {[%clk 0:00:55.1]} 37. Ne4 {[%clk 0:01:08.8]} 37...
Kd5 {[%clk 0:00:54.6]} 38. Nf6+ {[%clk 0:01:08]} 38... Ke6 {[%clk 0:00:54.5]}
39. Ne4 {[%clk 0:01:09.4]} 39... d3 {[%clk 0:00:51.8]} 40. Bf6 {[%clk
0:01:06.3]} 40... Kd5 {[%clk 0:00:50]} 41. Nd6 {[%clk 0:01:01.6]} 41... Bd7
{[%clk 0:00:37.8]} 42. Rd1 {[%clk 0:01:02.8]} 42... Rb3 {[%clk 0:00:35.8]} 43.
Rd2 {[%clk 0:00:53.3]} 43... Rxa3 {[%clk 0:00:35.2]} 44. Nxf7 {[%clk 0:00:50.6]}
44... Nd4 {[%clk 0:00:25.4]} 45. Ke3 {[%clk 0:00:46.2]} 45... Bf5 {[%clk
0:00:24.6]} 46. Nd6 {[%clk 0:00:41.6]} 46... Nc2+ {[%clk 0:00:23.4]} 47. Kf2
{[%clk 0:00:42.5]} 47... Ke6 {[%clk 0:00:23.5]} 48. Ne8 {[%clk 0:00:39.4]} 48...
Kd5 {[%clk 0:00:21]} 49. Nc7+ {[%clk 0:00:33.4]} 49... Kc6 {[%clk 0:00:15.7]}
50. Ne8 {[%clk 0:00:31.2]} 50... Kd5 {[%clk 0:00:17.3]} 51. Nc7+ {[%clk
0:00:30.9]} 51... Kc6 {[%clk 0:00:18.2]} 52. Ne8 {[%clk 0:00:31.5]} 52... Kd5
{[%clk 0:00:19.6]} 53. Ng7 {[%clk 0:00:33.4]} 53... Bg4 {[%clk 0:00:14.6]} 54.
f5 {[%clk 0:00:34.6]} 54... Nd4 {[%clk 0:00:14.1]} 55. e6 {[%clk 0:00:34.2]}
55... Nxf5 {[%clk 0:00:14]} 56. e7 {[%clk 0:00:35.5]} 56... Nxg7 {[%clk
0:00:13]} 57. Bxg7 {[%clk 0:00:36.2]} 57... Bh5 {[%clk 0:00:14.4]} 58. Ke3
{[%clk 0:00:28.7]} 58... Bg6 {[%clk 0:00:15.2]} 59. e8=Q {[%clk 0:00:25.7]}
59... Bxe8 {[%clk 0:00:15.9]} 60. Rxd3+ {[%clk 0:00:27.2]} 60... Rxd3+ {[%clk
0:00:17.3]} 61. Kxd3 {[%clk 0:00:29.1]} 61... a5 {[%clk 0:00:18.3]} 62. Kc3
{[%clk 0:00:30.1]} 62... a4 {[%clk 0:00:19.4]} 63. Kb2 {[%clk 0:00:31.5]} 63...
Ke4 {[%clk 0:00:21]} 64. Ka1 {[%clk 0:00:32.4]} 64... Kd3 {[%clk 0:00:22.6]} 65.
Bf6 {[%clk 0:00:33.4]} 65... Kc2 {[%clk 0:00:23.8]} 1/2-1/2

[Event "*** Titled Tuesday Blitz"]
[Site "Chess.com"]
[Date "2018.09.04"]
[Round "4"]
[White "Faqade"]
[Black "maciek_92"]
[Result "0-1"]
[WhiteElo "2476"]
[BlackElo "2664"]
[TimeControl "180+2"]
[EndTime "14:28:42 PDT"]
[Termination "maciek_92 won by resignation"]

1. e4 {[%clk 0:03:01.9]} 1... e5 {[%clk 0:02:58.6]} 2. Nf3 {[%clk 0:03:02]} 2...
Nc6 {[%clk 0:03:00]} 3. Bc4 {[%clk 0:03:03.5]} 3... Bc5 {[%clk 0:03:00.2]} 4. d3
{[%clk 0:03:05]} 4... Nf6 {[%clk 0:03:00.3]} 5. O-O {[%clk 0:03:06.5]} 5... d6
{[%clk 0:03:00.9]} 6. c3 {[%clk 0:03:05]} 6... a6 {[%clk 0:02:59.7]} 7. h3
{[%clk 0:03:06.2]} 7... Ba7 {[%clk 0:02:56.9]} 8. a4 {[%clk 0:03:07.3]} 8... O-O
{[%clk 0:02:42.8]} 9. Bg5 {[%clk 0:03:07.1]} 9... h6 {[%clk 0:02:44.1]} 10. Bh4
{[%clk 0:03:07.2]} 10... Be6 {[%clk 0:02:45]} 11. Nbd2 {[%clk 0:03:07.3]} 11...
Qe7 {[%clk 0:02:37.3]} 12. b4 {[%clk 0:03:03.2]} 12... Rad8 {[%clk 0:02:34.9]}
13. Re1 {[%clk 0:02:57.2]} 13... g5 {[%clk 0:02:30.4]} 14. Bg3 {[%clk
0:02:55.3]} 14... Nh5 {[%clk 0:01:58.5]} 15. Bh2 {[%clk 0:02:55.4]} 15... Nf4
{[%clk 0:01:59.3]} 16. Nf1 {[%clk 0:02:49.5]} 16... Qf6 {[%clk 0:01:44.2]} 17.
Ne3 {[%clk 0:02:49]} 17... Ne7 {[%clk 0:01:27.6]} 18. d4 {[%clk 0:02:32.2]}
18... Neg6 {[%clk 0:01:23]} 19. Bf1 {[%clk 0:02:31]} 19... h5 {[%clk 0:01:20]}
20. Bg3 {[%clk 0:01:42.8]} 20... Kg7 {[%clk 0:01:09.6]} 21. Qc2 {[%clk
0:00:38.5]} 21... Rh8 {[%clk 0:00:52.1]} 22. Nf5+ {[%clk 0:00:38]} 22... Kg8
{[%clk 0:00:53.4]} 23. dxe5 {[%clk 0:00:32.4]} 23... dxe5 {[%clk 0:00:55.3]} 24.
Rad1 {[%clk 0:00:28.9]} 24... Re8 {[%clk 0:00:55.4]} 25. h4 {[%clk 0:00:22]}
25... gxh4 {[%clk 0:00:33.5]} 26. N3xh4 {[%clk 0:00:23.9]} 26... Nxh4 {[%clk
0:00:27.5]} 27. Bxh4 {[%clk 0:00:24.1]} 27... Qg6 {[%clk 0:00:29]} 28. g3 {[%clk
0:00:25.4]} 28... Qg4 {[%clk 0:00:13.5]} 29. Kh2 {[%clk 0:00:26.1]} 29... Kh7
{[%clk 0:00:13.3]} 30. Ne3 {[%clk 0:00:20.8]} 30... Qf3 {[%clk 0:00:08]} 31. Nd5
{[%clk 0:00:21.3]} 31... Nxd5 {[%clk 0:00:07.5]} 32. exd5+ {[%clk 0:00:22.7]}
32... Bf5 {[%clk 0:00:09]} 33. Bd3 {[%clk 0:00:23.5]} 33... e4 {[%clk
0:00:10.3]} 34. Bf1 {[%clk 0:00:22.2]} 34... Bxf2 {[%clk 0:00:10.4]} 35. Bg2
{[%clk 0:00:22.6]} 35... e3 {[%clk 0:00:10.9]} 36. Qa2 {[%clk 0:00:21]} 36...
Qg4 {[%clk 0:00:10.8]} 37. Rf1 {[%clk 0:00:21.1]} 37... e2 {[%clk 0:00:11.4]}
38. d6 {[%clk 0:00:20.7]} 38... Be6 {[%clk 0:00:11.8]} 39. Qc2+ {[%clk
0:00:20.9]} 39... Bf5 {[%clk 0:00:13.2]} 40. Qa2 {[%clk 0:00:22]} 40... Re6
{[%clk 0:00:13.2]} 41. Rc1 {[%clk 0:00:19.4]} 41... exf1=N+ {[%clk 0:00:12.5]}
42. Rxf1 {[%clk 0:00:21]} 42... Be3 {[%clk 0:00:11.9]} 43. dxc7 {[%clk
0:00:21.4]} 43... Rg8 {[%clk 0:00:13.1]} 44. Qd5 {[%clk 0:00:21.3]} 44... Bg6
{[%clk 0:00:12.9]} 45. Qd7 {[%clk 0:00:20.6]} 45... Ree8 {[%clk 0:00:12.3]} 46.
Rxf7+ {[%clk 0:00:20.9]} 46... Bxf7 {[%clk 0:00:14.2]} 47. Qxf7+ {[%clk
0:00:21.9]} 47... Qg7 {[%clk 0:00:14.4]} 48. Qxh5+ {[%clk 0:00:23]} 48... Bh6
{[%clk 0:00:14.4]} 49. Qf5+ {[%clk 0:00:24.3]} 49... Qg6 {[%clk 0:00:14.3]} 50.
Qd7+ {[%clk 0:00:25.8]} 50... Rg7 {[%clk 0:00:14.8]} 51. Qd8 {[%clk 0:00:23]}
51... Qe6 {[%clk 0:00:13.2]} 52. Bd5 {[%clk 0:00:22.2]} 52... Qe2+ {[%clk
0:00:13.1]} 53. Bg2 {[%clk 0:00:23.7]} 53... Qe6 {[%clk 0:00:13.9]} 54. Bd5
{[%clk 0:00:23.3]} 54... Rxd8 {[%clk 0:00:04.6]} 55. cxd8=Q {[%clk 0:00:22.9]}
55... Qf5 {[%clk 0:00:06.1]} 56. Bg2 {[%clk 0:00:21.4]} 56... Rd7 {[%clk
0:00:06]} 57. Qe8 {[%clk 0:00:21.6]} 57... Bg7 {[%clk 0:00:06.2]} 58. Be4 {[%clk
0:00:22]} 58... Rd2+ {[%clk 0:00:07.6]} 59. Kg1 {[%clk 0:00:23.4]} 59... Rd1+
{[%clk 0:00:09]} 60. Kg2 {[%clk 0:00:24.6]} 60... Rd2+ {[%clk 0:00:10.3]} 61.
Kg1 {[%clk 0:00:25.7]} 61... Rd1+ {[%clk 0:00:11.8]} 62. Kh2 {[%clk 0:00:27.3]}
62... Rd2+ {[%clk 0:00:13.1]} 63. Bg2 {[%clk 0:00:28.6]} 63... Qd5 {[%clk
0:00:12.6]} 64. Kh3 {[%clk 0:00:23.9]} 64... Qxg2+ {[%clk 0:00:13.5]} 65. Kg4
{[%clk 0:00:25.2]} 65... Qe2+ {[%clk 0:00:15.4]} 66. Qxe2 {[%clk 0:00:25.9]}
66... Rxe2 {[%clk 0:00:17.3]} 67. Kf5 {[%clk 0:00:27.5]} 67... Bxc3 {[%clk
0:00:18]} 0-1